[Event "*** Titled Tuesday Blitz"]
[Site "Chess.com"]
[Date "2020.05.19"]
[Round "1"]
[White "CzechmVIII"]
[Black "MPGM"]
[Result "1-0"]
[WhiteElo "2213"]
[BlackElo "2505"]
[TimeControl "180+1"]
[EndTime "12:07:20 PDT"]
[Termination "CzechmVIII won on time"]

1. e4 {[%clk 0:02:59.9]} 1... c6 {[%clk 0:02:59.4]} 2. d4 {[%clk 0:02:58.7]}
2... d5 {[%clk 0:03:00.3]} 3. e5 {[%clk 0:02:59]} 3... Bf5 {[%clk 0:02:59.6]} 4.
Nc3 {[%clk 0:02:58.5]} 4... e6 {[%clk 0:02:56.5]} 5. g4 {[%clk 0:02:58.3]} 5...
Bg6 {[%clk 0:02:56.4]} 6. Nge2 {[%clk 0:02:58.3]} 6... f6 {[%clk 0:02:32.4]} 7.
h4 {[%clk 0:02:46.8]} 7... Nd7 {[%clk 0:02:13]} 8. h5 {[%clk 0:02:33.1]} 8...
Bf7 {[%clk 0:02:11.9]} 9. f4 {[%clk 0:02:33.1]} 9... Nh6 {[%clk 0:02:02.2]} 10.
exf6 {[%clk 0:02:19.7]} 10... gxf6 {[%clk 0:01:55.6]} 11. Ng3 {[%clk 0:02:03.2]}
11... Bd6 {[%clk 0:01:43.9]} 12. Qf3 {[%clk 0:01:51.2]} 12... Rg8 {[%clk
0:01:41.9]} 13. Bh3 {[%clk 0:01:43.3]} 13... Qc7 {[%clk 0:01:38.7]} 14. Bd2
{[%clk 0:01:39.7]} 14... O-O-O {[%clk 0:01:33.8]} 15. O-O-O {[%clk 0:01:39.7]}
15... Kb8 {[%clk 0:01:23]} 16. Rhg1 {[%clk 0:01:20.7]} 16... Rgf8 {[%clk
0:00:19.4]} 17. f5 {[%clk 0:01:11.1]} 17... Ng8 {[%clk 0:00:17.4]} 18. g5 {[%clk
0:01:10.6]} 18... fxg5 {[%clk 0:00:16.2]} 19. Bxg5 {[%clk 0:01:09.2]} 19... Rde8
{[%clk 0:00:15.3]} 20. f6 {[%clk 0:01:03.5]} 20... Ngxf6 {[%clk 0:00:09.7]} 21.
Bxf6 {[%clk 0:00:59.9]} 21... Bg8 {[%clk 0:00:10]} 22. Nge2 {[%clk 0:00:42.7]}
22... Rxf6 {[%clk 0:00:09.8]} 23. Qd3 {[%clk 0:00:39.5]} 23... Bf7 {[%clk
0:00:08]} 24. Qxh7 {[%clk 0:00:28]} 24... b5 {[%clk 0:00:07.8]} 25. h6 {[%clk
0:00:24.3]} 25... Rf2 {[%clk 0:00:05.1]} 26. Qd3 {[%clk 0:00:22.5]} 26... Nf6
{[%clk 0:00:03]} 27. Rdf1 {[%clk 0:00:22.5]} 27... Rxf1+ {[%clk 0:00:02.7]} 28.
Rxf1 {[%clk 0:00:22.3]} 28... Be7 {[%clk 0:00:02.9]} 29. Nd1 {[%clk 0:00:17.5]}
29... Qh2 {[%clk 0:00:02.6]} 30. Rg1 {[%clk 0:00:14.3]} 30... Rh8 {[%clk
0:00:02.5]} 31. Rg7 {[%clk 0:00:13.3]} 31... Be8 {[%clk 0:00:02]} 32. Rxe7
{[%clk 0:00:12.2]} 32... Rxh6 {[%clk 0:00:02.6]} 33. Rxe6 {[%clk 0:00:11.5]}
33... Qxh3 {[%clk 0:00:02.4]} 34. Qxh3 {[%clk 0:00:11]} 34... Rxh3 {[%clk
0:00:02.6]} 35. Rxf6 {[%clk 0:00:11.4]} 35... Bh5 {[%clk 0:00:01.4]} 36. Rf8+
{[%clk 0:00:11.1]} 36... Kb7 {[%clk 0:00:01.7]} 37. Rh8 {[%clk 0:00:11.4]} 1-0

[Event "*** Titled Tuesday Blitz"]
[Site "Chess.com"]
[Date "2020.05.19"]
[Round "1"]
[White "DonPreuss"]
[Black "Malev212"]
[Result "1-0"]
[WhiteElo "2198"]
[BlackElo "2495"]
[TimeControl "180+1"]
[EndTime "12:07:20 PDT"]
[Termination "DonPreuss won on time"]

1. d4 {[%clk 0:02:56.4]} 1... e6 {[%clk 0:03:00.9]} 2. e4 {[%clk 0:02:53]} 2...
d5 {[%clk 0:02:58.2]} 3. Nc3 {[%clk 0:02:53.4]} 3... Bb4 {[%clk 0:02:50.6]} 4.
exd5 {[%clk 0:02:52.2]} 4... exd5 {[%clk 0:02:47]} 5. Bd3 {[%clk 0:02:52.7]}
5... Nc6 {[%clk 0:02:43.6]} 6. Ne2 {[%clk 0:02:52.7]} 6... Nf6 {[%clk
0:02:41.6]} 7. O-O {[%clk 0:02:50.6]} 7... h6 {[%clk 0:02:39.7]} 8. Bf4 {[%clk
0:02:23.6]} 8... O-O {[%clk 0:02:37.3]} 9. Qd2 {[%clk 0:02:23.1]} 9... Re8
{[%clk 0:02:27.2]} 10. Rad1 {[%clk 0:02:21.1]} 10... Ne4 {[%clk 0:01:57.1]} 11.
Bxe4 {[%clk 0:02:15.3]} 11... dxe4 {[%clk 0:01:43.5]} 12. Qe3 {[%clk 0:01:47.4]}
12... Bf5 {[%clk 0:01:34.7]} 13. Ng3 {[%clk 0:01:42.6]} 13... Bg6 {[%clk
0:01:33.2]} 14. d5 {[%clk 0:01:35.4]} 14... Ne5 {[%clk 0:01:31.1]} 15. Ncxe4
{[%clk 0:01:22.9]} 15... Ng4 {[%clk 0:01:17.7]} 16. Qd4 {[%clk 0:01:20.8]} 16...
Bf8 {[%clk 0:00:55.4]} 17. h3 {[%clk 0:01:09.5]} 17... Nf6 {[%clk 0:00:43.6]}
18. Nxf6+ {[%clk 0:01:09.2]} 18... gxf6 {[%clk 0:00:42]} 19. c4 {[%clk
0:00:54.4]} 19... f5 {[%clk 0:00:40.6]} 20. Be5 {[%clk 0:00:49.7]} 20... Qe7
{[%clk 0:00:36.4]} 21. Bf6 {[%clk 0:00:49.1]} 21... Qd6 {[%clk 0:00:35.1]} 22.
Rfe1 {[%clk 0:00:32.3]} 22... f4 {[%clk 0:00:34.4]} 23. Nf1 {[%clk 0:00:29.5]}
23... c5 {[%clk 0:00:31.9]} 24. Qc3 {[%clk 0:00:27.4]} 24... b6 {[%clk
0:00:28.3]} 25. Nh2 {[%clk 0:00:27.2]} 25... h5 {[%clk 0:00:27]} 26. Nf3 {[%clk
0:00:27.4]} 26... Be4 {[%clk 0:00:26.4]} 27. Be5 {[%clk 0:00:26.2]} 27... Qg6
{[%clk 0:00:18.5]} 28. Bxf4 {[%clk 0:00:21.7]} 28... Bg7 {[%clk 0:00:18.1]} 29.
Qb3 {[%clk 0:00:18.5]} 29... f5 {[%clk 0:00:16]} 30. h4 {[%clk 0:00:15.3]} 30...
Qg4 {[%clk 0:00:12.1]} 31. Bg3 {[%clk 0:00:10.3]} 31... f4 {[%clk 0:00:10.3]}
32. Nh2 {[%clk 0:00:08.2]} 32... Qf5 {[%clk 0:00:05.6]} 33. Qa3 {[%clk
0:00:04.9]} 1-0

[Event "*** Titled Tuesday Blitz"]
[Site "Chess.com"]
[Date "2020.05.19"]
[Round "1"]
[White "mbachez"]
[Black "Gandrade2"]
[Result "1-0"]
[WhiteElo "2489"]
[BlackElo "2045"]
[TimeControl "180+1"]
[EndTime "12:07:20 PDT"]
[Termination "mbachez won on time"]

1. e4 {[%clk 0:03:00.6]} 1... c6 {[%clk 0:02:59.6]} 2. Nf3 {[%clk 0:02:57.4]}
2... d5 {[%clk 0:02:59.5]} 3. Nc3 {[%clk 0:02:57.3]} 3... Nf6 {[%clk 0:02:59.4]}
4. e5 {[%clk 0:02:57.4]} 4... Ne4 {[%clk 0:02:59.5]} 5. Ne2 {[%clk 0:02:57.4]}
5... Bg4 {[%clk 0:02:48.2]} 6. d4 {[%clk 0:02:48.8]} 6... e6 {[%clk 0:02:39]} 7.
h3 {[%clk 0:02:47.3]} 7... Bh5 {[%clk 0:02:39]} 8. Nf4 {[%clk 0:02:40.5]} 8...
Bg6 {[%clk 0:02:38.9]} 9. Bd3 {[%clk 0:02:38.3]} 9... c5 {[%clk 0:02:26.3]} 10.
O-O {[%clk 0:02:30.1]} 10... Nc6 {[%clk 0:02:21.8]} 11. Re1 {[%clk 0:02:26.3]}
11... cxd4 {[%clk 0:02:16.4]} 12. Nxg6 {[%clk 0:02:16.3]} 12... hxg6 {[%clk
0:02:16.3]} 13. Bxe4 {[%clk 0:02:16.6]} 13... dxe4 {[%clk 0:02:14.5]} 14. Rxe4
{[%clk 0:02:16.9]} 14... Bc5 {[%clk 0:02:07.6]} 15. a3 {[%clk 0:02:09.1]} 15...
a5 {[%clk 0:02:04]} 16. Qd3 {[%clk 0:02:08.1]} 16... Qc7 {[%clk 0:01:43.9]} 17.
Bf4 {[%clk 0:02:07.4]} 17... Rd8 {[%clk 0:01:42.9]} 18. Rae1 {[%clk 0:02:01.9]}
18... Qb6 {[%clk 0:01:40.6]} 19. Bc1 {[%clk 0:01:52]} 19... a4 {[%clk
0:01:38.3]} 20. Rf4 {[%clk 0:01:51.3]} 20... Be7 {[%clk 0:01:09.4]} 21. Nd2
{[%clk 0:01:51.1]} 21... Bg5 {[%clk 0:01:05.6]} 22. Nc4 {[%clk 0:01:50.7]} 22...
Qc7 {[%clk 0:01:00.8]} 23. Rxf7 {[%clk 0:01:50.3]} 23... Kxf7 {[%clk 0:00:38.8]}
24. Bxg5 {[%clk 0:01:49.1]} 24... Rd7 {[%clk 0:00:33.3]} 25. Re4 {[%clk
0:01:46.4]} 25... Rf8 {[%clk 0:00:28.9]} 26. Rf4+ {[%clk 0:01:37.4]} 26... Kg8
{[%clk 0:00:27.2]} 27. Qxg6 {[%clk 0:01:37.3]} 27... Nxe5 {[%clk 0:00:20.6]} 28.
Qxe6+ {[%clk 0:01:23.4]} 28... Nf7 {[%clk 0:00:21.1]} 29. Rg4 {[%clk 0:00:50.8]}
29... Qc6 {[%clk 0:00:20.1]} 30. Qxc6 {[%clk 0:00:42.3]} 30... bxc6 {[%clk
0:00:21]} 31. Bd2 {[%clk 0:00:42.4]} 31... c5 {[%clk 0:00:19.3]} 32. Rg6 {[%clk
0:00:40.2]} 32... Re8 {[%clk 0:00:18]} 33. Kf1 {[%clk 0:00:40.1]} 33... Rde7
{[%clk 0:00:16.6]} 34. g3 {[%clk 0:00:40.2]} 34... Re6 {[%clk 0:00:14.3]} 35.
Rxe6 {[%clk 0:00:38.7]} 35... Rxe6 {[%clk 0:00:15.2]} 36. f3 {[%clk 0:00:37.8]}
36... Nd8 {[%clk 0:00:12.9]} 37. f4 {[%clk 0:00:35.7]} 37... Nc6 {[%clk
0:00:13.2]} 38. Kf2 {[%clk 0:00:35]} 38... Kf7 {[%clk 0:00:13]} 39. Nb6 {[%clk
0:00:34.1]} 39... Ne7 {[%clk 0:00:07.9]} 40. Nc4 {[%clk 0:00:31.5]} 40... Nd5
{[%clk 0:00:06.6]} 41. g4 {[%clk 0:00:31.2]} 41... Re4 {[%clk 0:00:05.3]} 42.
Nd6+ {[%clk 0:00:31]} 1-0

[Event "*** Titled Tuesday Blitz"]
[Site "Chess.com"]
[Date "2020.05.19"]
[Round "1"]
[White "Konovalova_Vera"]
[Black "MFguimaraes"]
[Result "1/2-1/2"]
[WhiteElo "2150"]
[BlackElo "2499"]
[TimeControl "180+1"]
[EndTime "12:07:21 PDT"]
[Termination "Game drawn by repetition"]

1. d4 {[%clk 0:02:58.3]} 1... Nf6 {[%clk 0:02:59.5]} 2. Bg5 {[%clk 0:02:58.3]}
2... c5 {[%clk 0:02:57.4]} 3. e3 {[%clk 0:02:57.3]} 3... Qb6 {[%clk 0:02:56.7]}
4. b3 {[%clk 0:02:55.5]} 4... e6 {[%clk 0:02:55.4]} 5. Bxf6 {[%clk 0:02:54.2]}
5... gxf6 {[%clk 0:02:56.3]} 6. Nf3 {[%clk 0:02:53.8]} 6... Nc6 {[%clk
0:02:55.5]} 7. Be2 {[%clk 0:02:50]} 7... Rg8 {[%clk 0:02:50.2]} 8. O-O {[%clk
0:02:46.1]} 8... f5 {[%clk 0:02:46.6]} 9. c4 {[%clk 0:02:43.9]} 9... cxd4 {[%clk
0:02:46.1]} 10. exd4 {[%clk 0:02:40]} 10... Bg7 {[%clk 0:02:41.6]} 11. c5 {[%clk
0:02:35.3]} 11... Qc7 {[%clk 0:02:25.1]} 12. Nc3 {[%clk 0:02:34.3]} 12... d5
{[%clk 0:02:20]} 13. Nb5 {[%clk 0:02:28.5]} 13... Qf4 {[%clk 0:01:58.9]} 14. g3
{[%clk 0:02:25.5]} 14... Qh6 {[%clk 0:01:55]} 15. Nc7+ {[%clk 0:02:22.5]} 15...
Kd8 {[%clk 0:01:53.7]} 16. Nxa8 {[%clk 0:02:21.9]} 16... f4 {[%clk 0:01:46.3]}
17. Qd2 {[%clk 0:02:02.5]} 17... fxg3 {[%clk 0:01:39.9]} 18. Qxh6 {[%clk
0:02:01.9]} 18... gxf2+ {[%clk 0:01:38.8]} 19. Kxf2 {[%clk 0:02:01.3]} 19...
Bxh6 {[%clk 0:01:39]} 20. Rg1 {[%clk 0:01:58.8]} 20... Rg6 {[%clk 0:01:28.4]}
21. Rxg6 {[%clk 0:01:51.6]} 21... hxg6 {[%clk 0:01:28.3]} 22. Rg1 {[%clk
0:01:40.4]} 22... Bd7 {[%clk 0:01:20.5]} 23. Rd1 {[%clk 0:01:33.6]} 23... Kc8
{[%clk 0:01:19.7]} 24. Ne5 {[%clk 0:01:32.4]} 24... Nxe5 {[%clk 0:01:17.3]} 25.
dxe5 {[%clk 0:01:32.4]} 25... Bf4 {[%clk 0:01:16.8]} 26. h4 {[%clk 0:01:27.8]}
26... Bxe5 {[%clk 0:01:16.5]} 27. h5 {[%clk 0:01:26.7]} 27... gxh5 {[%clk
0:01:11.3]} 28. Bxh5 {[%clk 0:01:26.4]} 28... f5 {[%clk 0:01:05.2]} 29. Bf7
{[%clk 0:01:18]} 29... Kb8 {[%clk 0:01:03.4]} 30. Rh1 {[%clk 0:01:16.9]} 30...
Kxa8 {[%clk 0:01:02.6]} 31. Rh7 {[%clk 0:01:15.9]} 31... a5 {[%clk 0:00:59]} 32.
Bh5 {[%clk 0:01:13.4]} 32... Bd4+ {[%clk 0:00:58.1]} 33. Ke1 {[%clk 0:01:11.8]}
33... Bc6 {[%clk 0:00:57.2]} 34. Re7 {[%clk 0:01:06.7]} 34... e5 {[%clk
0:00:56.7]} 35. Be8 {[%clk 0:01:05.2]} 35... e4 {[%clk 0:00:48.7]} 36. Bxc6
{[%clk 0:01:04.1]} 36... bxc6 {[%clk 0:00:49.6]} 37. Rf7 {[%clk 0:01:02.4]}
37... Bxc5 {[%clk 0:00:49.4]} 38. Rxf5 {[%clk 0:01:02.4]} 38... Kb7 {[%clk
0:00:49.1]} 39. Ke2 {[%clk 0:01:01.4]} 39... Kb6 {[%clk 0:00:46.7]} 40. a4
{[%clk 0:01:01.1]} 40... Bg1 {[%clk 0:00:45.1]} 41. Rf1 {[%clk 0:01:00.5]} 41...
Bc5 {[%clk 0:00:44]} 42. Rc1 {[%clk 0:01:00]} 42... d4 {[%clk 0:00:43.7]} 43.
Rc4 {[%clk 0:00:57.9]} 43... d3+ {[%clk 0:00:35.8]} 44. Kd2 {[%clk 0:00:57.2]}
44... Bb4+ {[%clk 0:00:34.1]} 45. Ke3 {[%clk 0:00:57]} 45... d2 {[%clk
0:00:34.3]} 46. Ke2 {[%clk 0:00:54.2]} 46... e3 {[%clk 0:00:34.1]} 47. Re4
{[%clk 0:00:52.5]} 47... Bc5 {[%clk 0:00:34.1]} 48. Re5 {[%clk 0:00:52]} 48...
Bd4 {[%clk 0:00:34]} 49. Re4 {[%clk 0:00:52]} 49... Kc5 {[%clk 0:00:34.4]} 50.
Kd1 {[%clk 0:00:48.4]} 50... Kd5 {[%clk 0:00:32.3]} 51. Re8 {[%clk 0:00:47.4]}
51... Be5 {[%clk 0:00:31.3]} 52. Rd8+ {[%clk 0:00:44.1]} 52... Kc5 {[%clk
0:00:30.7]} 53. Re8 {[%clk 0:00:43.7]} 53... Bd4 {[%clk 0:00:30.4]} 54. Rd8
{[%clk 0:00:43.1]} 54... Be5 {[%clk 0:00:29.2]} 55. Re8 {[%clk 0:00:42.9]} 55...
Bd4 {[%clk 0:00:28.8]} 56. Rd8 {[%clk 0:00:42.8]} 56... Be5 {[%clk 0:00:28.4]}
1/2-1/2

[Event "*** Titled Tuesday Blitz"]
[Site "Chess.com"]
[Date "2020.05.19"]
[Round "1"]
[White "Er_is_geen_hoop_meer"]
[Black "XDPS"]
[Result "1-0"]
[WhiteElo "2394"]
[BlackElo "2692"]
[TimeControl "180+1"]
[EndTime "12:07:24 PDT"]
[Termination "Er_is_geen_hoop_meer won by resignation"]

1. b4 {[%clk 0:03:00.1]} 1... d5 {[%clk 0:02:51.6]} 2. Bb2 {[%clk 0:03:00]} 2...
Nf6 {[%clk 0:02:48.3]} 3. e3 {[%clk 0:03:00.1]} 3... Bf5 {[%clk 0:02:47.6]} 4.
Be2 {[%clk 0:03:00.2]} 4... e6 {[%clk 0:02:47.4]} 5. a3 {[%clk 0:03:00.6]} 5...
Nbd7 {[%clk 0:02:47.6]} 6. g4 {[%clk 0:03:00.5]} 6... Bg6 {[%clk 0:02:44.3]} 7.
g5 {[%clk 0:03:00.6]} 7... Ne4 {[%clk 0:02:36.7]} 8. h4 {[%clk 0:03:01]} 8... h5
{[%clk 0:02:32.6]} 9. Nh3 {[%clk 0:02:59.2]} 9... e5 {[%clk 0:02:27.6]} 10. d3
{[%clk 0:02:52.8]} 10... Nd6 {[%clk 0:02:26.3]} 11. f4 {[%clk 0:02:48.8]} 11...
Nf5 {[%clk 0:02:24]} 12. fxe5 {[%clk 0:02:48.8]} 12... Nxe3 {[%clk 0:02:19.7]}
13. Qd2 {[%clk 0:02:49]} 13... Ng2+ {[%clk 0:02:17.8]} 14. Kf2 {[%clk
0:02:43.9]} 14... Nxh4 {[%clk 0:02:18.7]} 15. Qf4 {[%clk 0:02:42.8]} 15... Nf5
{[%clk 0:02:15.2]} 16. Nc3 {[%clk 0:02:41.8]} 16... c6 {[%clk 0:02:13.5]} 17. d4
{[%clk 0:02:37.3]} 17... Be7 {[%clk 0:02:04.8]} 18. Bd3 {[%clk 0:02:36.1]} 18...
Nxd4 {[%clk 0:01:22.4]} 19. Qxd4 {[%clk 0:02:21.5]} 19... O-O {[%clk 0:01:21.1]}
20. Kg3 {[%clk 0:02:11.8]} 20... Bxg5 {[%clk 0:01:14.3]} 21. Raf1 {[%clk
0:02:00.7]} 21... Qe7 {[%clk 0:00:58.4]} 22. e6 {[%clk 0:01:52.6]} 22... Bf6
{[%clk 0:00:41]} 23. Rxf6 {[%clk 0:01:47.5]} 23... Qxf6 {[%clk 0:00:40.9]} 24.
Qxf6 {[%clk 0:01:42.9]} 24... Nxf6 {[%clk 0:00:40.9]} 25. Bxg6 {[%clk
0:01:43.4]} 25... fxg6 {[%clk 0:00:41.4]} 26. Ng5 {[%clk 0:01:40.7]} 26... Rae8
{[%clk 0:00:40.9]} 27. Re1 {[%clk 0:01:36.6]} 27... Ng4 {[%clk 0:00:40.5]} 28.
Nf7 {[%clk 0:01:17.7]} 28... Nh6 {[%clk 0:00:34.3]} 29. Nxh6+ {[%clk 0:00:58.7]}
29... gxh6 {[%clk 0:00:35.2]} 30. Na4 {[%clk 0:00:59.3]} 30... g5 {[%clk
0:00:30.7]} 31. Nc5 {[%clk 0:00:58.5]} 31... Re7 {[%clk 0:00:26.5]} 32. Nd7
{[%clk 0:00:58]} 32... Rf5 {[%clk 0:00:20]} 33. Nf6+ {[%clk 0:00:56.3]} 33...
Kf8 {[%clk 0:00:20.3]} 34. Nxh5 {[%clk 0:00:56.4]} 34... Ke8 {[%clk 0:00:19.9]}
35. Bf6 {[%clk 0:00:55.6]} 35... d4 {[%clk 0:00:16.7]} 36. Bxd4 {[%clk
0:00:48.9]} 36... Rc7 {[%clk 0:00:15.2]} 37. Ng7+ {[%clk 0:00:48]} 37... Rxg7
{[%clk 0:00:15.6]} 38. Bxg7 {[%clk 0:00:48.9]} 38... h5 {[%clk 0:00:16.1]} 39.
e7 {[%clk 0:00:47.2]} 39... Rf4 {[%clk 0:00:15.1]} 40. Bf8 {[%clk 0:00:46.9]}
40... h4+ {[%clk 0:00:15.3]} 41. Kg2 {[%clk 0:00:46.8]} 41... Rd4 {[%clk
0:00:14.9]} 42. Kf3 {[%clk 0:00:45.3]} 42... g4+ {[%clk 0:00:14.8]} 43. Ke3
{[%clk 0:00:45.3]} 43... Rd6 {[%clk 0:00:15.4]} 44. Kf4 {[%clk 0:00:44.7]} 44...
g3 {[%clk 0:00:15.9]} 45. Kg4 {[%clk 0:00:43.7]} 45... g2 {[%clk 0:00:16.1]} 46.
Kxh4 {[%clk 0:00:42.3]} 46... Re6 {[%clk 0:00:09.3]} 47. Rg1 {[%clk 0:00:39.5]}
47... Re2 {[%clk 0:00:09.8]} 48. Kh3 {[%clk 0:00:38.3]} 48... Rxc2 {[%clk
0:00:10.2]} 49. Rxg2 {[%clk 0:00:38.7]} 49... Rc3+ {[%clk 0:00:10.3]} 50. Rg3
{[%clk 0:00:39.1]} 50... Rc1 {[%clk 0:00:07.9]} 51. Rd3 {[%clk 0:00:39]} 1-0

[Event "*** Titled Tuesday Blitz"]
[Site "Chess.com"]
[Date "2020.05.19"]
[Round "1"]
[White "SaySpade4VIP"]
[Black "Djager97"]
[Result "1-0"]
[WhiteElo "2675"]
[BlackElo "2360"]
[TimeControl "180+1"]
[EndTime "12:07:24 PDT"]
[Termination "SaySpade4VIP won by resignation"]

1. d4 {[%clk 0:02:56.4]} 1... d5 {[%clk 0:02:59.8]} 2. Bf4 {[%clk 0:02:56.5]}
2... Nf6 {[%clk 0:02:59.7]} 3. e3 {[%clk 0:02:56.5]} 3... c5 {[%clk 0:02:59.8]}
4. c3 {[%clk 0:02:54.9]} 4... Nc6 {[%clk 0:02:58.7]} 5. Nd2 {[%clk 0:02:55]}
5... Bf5 {[%clk 0:02:54.1]} 6. Ngf3 {[%clk 0:02:54.4]} 6... e6 {[%clk
0:02:53.9]} 7. Qb3 {[%clk 0:02:30]} 7... Qc8 {[%clk 0:02:50.1]} 8. c4 {[%clk
0:02:27.1]} 8... cxd4 {[%clk 0:02:41]} 9. Nxd4 {[%clk 0:02:09.8]} 9... Nxd4
{[%clk 0:02:10.7]} 10. exd4 {[%clk 0:02:10.7]} 10... Be7 {[%clk 0:02:04.2]} 11.
Rc1 {[%clk 0:02:06.9]} 11... O-O {[%clk 0:02:02.1]} 12. Be2 {[%clk 0:02:07]}
12... dxc4 {[%clk 0:01:55.5]} 13. Nxc4 {[%clk 0:02:07.1]} 13... Qd7 {[%clk
0:01:49.8]} 14. Be5 {[%clk 0:02:00.8]} 14... Rac8 {[%clk 0:01:42.4]} 15. O-O
{[%clk 0:01:59.7]} 15... Rfd8 {[%clk 0:01:40.6]} 16. Bf3 {[%clk 0:01:49]} 16...
Nd5 {[%clk 0:01:40.1]} 17. Ne3 {[%clk 0:01:43.4]} 17... Nxe3 {[%clk 0:01:34.3]}
18. fxe3 {[%clk 0:01:42.4]} 18... b6 {[%clk 0:01:30.9]} 19. Rc3 {[%clk
0:01:30.9]} 19... h6 {[%clk 0:01:04.5]} 20. Rfc1 {[%clk 0:01:26.4]} 20... Rxc3
{[%clk 0:00:53]} 21. Qxc3 {[%clk 0:01:26.4]} 21... Bd6 {[%clk 0:00:43.1]} 22.
Bxd6 {[%clk 0:01:18.7]} 22... Qxd6 {[%clk 0:00:44]} 23. Qc7 {[%clk 0:01:19.3]}
23... e5 {[%clk 0:00:44.4]} 24. Qxd6 {[%clk 0:01:04.6]} 24... Rxd6 {[%clk
0:00:43.8]} 25. e4 {[%clk 0:01:05.5]} 25... Bg6 {[%clk 0:00:29]} 26. d5 {[%clk
0:01:05]} 26... f5 {[%clk 0:00:27.9]} 27. exf5 {[%clk 0:00:53.8]} 27... Bxf5
{[%clk 0:00:28.8]} 28. Rc7 {[%clk 0:00:54.1]} 28... e4 {[%clk 0:00:27.9]} 29.
Be2 {[%clk 0:00:53.6]} 29... Kh7 {[%clk 0:00:21.6]} 30. Bc4 {[%clk 0:00:37.9]}
30... a6 {[%clk 0:00:14.5]} 31. Rc6 {[%clk 0:00:35.6]} 31... Rxc6 {[%clk
0:00:12.4]} 32. dxc6 {[%clk 0:00:36.5]} 32... Bc8 {[%clk 0:00:13.2]} 33. Kf2
{[%clk 0:00:25.3]} 33... Kg6 {[%clk 0:00:13.2]} 34. Ke3 {[%clk 0:00:25.4]} 34...
Kf5 {[%clk 0:00:13.1]} 35. Kd4 {[%clk 0:00:21.5]} 35... Kf4 {[%clk 0:00:07.4]}
36. Be2 {[%clk 0:00:18.9]} 36... g5 {[%clk 0:00:05.4]} 37. g3+ {[%clk
0:00:15.9]} 37... Kf5 {[%clk 0:00:05.7]} 38. h3 {[%clk 0:00:16.5]} 38... a5
{[%clk 0:00:03.3]} 39. Bg4+ {[%clk 0:00:16]} 1-0

[Event "*** Titled Tuesday Blitz"]
[Site "Chess.com"]
[Date "2020.05.19"]
[Round "1"]
[White "ElHelvetico"]
[Black "albano87"]
[Result "0-1"]
[WhiteElo "2578"]
[BlackElo "2314"]
[TimeControl "180+1"]
[EndTime "12:07:24 PDT"]
[Termination "albano87 won by resignation"]

1. e4 {[%clk 0:02:59.2]} 1... c5 {[%clk 0:02:56.4]} 2. Nf3 {[%clk 0:02:59]} 2...
Nc6 {[%clk 0:02:55.3]} 3. Nc3 {[%clk 0:02:58.5]} 3... d6 {[%clk 0:02:54.7]} 4.
d4 {[%clk 0:02:58.5]} 4... cxd4 {[%clk 0:02:54.9]} 5. Nxd4 {[%clk 0:02:59.4]}
5... Nf6 {[%clk 0:02:55.4]} 6. Bg5 {[%clk 0:03:00]} 6... Bd7 {[%clk 0:02:51.5]}
7. f4 {[%clk 0:02:59.4]} 7... Rc8 {[%clk 0:02:43.2]} 8. Qd2 {[%clk 0:02:58.9]}
8... Nxd4 {[%clk 0:02:36.3]} 9. Qxd4 {[%clk 0:02:59.8]} 9... Qa5 {[%clk
0:02:36.6]} 10. O-O-O {[%clk 0:02:44.8]} 10... Rxc3 {[%clk 0:02:35.3]} 11. bxc3
{[%clk 0:02:45.7]} 11... e5 {[%clk 0:02:31.2]} 12. Qb4 {[%clk 0:02:14.8]} 12...
Qxb4 {[%clk 0:02:31.1]} 13. cxb4 {[%clk 0:02:15.7]} 13... Nxe4 {[%clk
0:02:31.6]} 14. Bd3 {[%clk 0:02:15.7]} 14... Nf2 {[%clk 0:02:26.8]} 15. fxe5
{[%clk 0:02:12]} 15... Nxh1 {[%clk 0:02:26.5]} 16. Rxh1 {[%clk 0:02:03.9]} 16...
dxe5 {[%clk 0:02:26.8]} 17. b5 {[%clk 0:01:52.5]} 17... f6 {[%clk 0:02:22.3]}
18. Be3 {[%clk 0:01:50.6]} 18... Ba3+ {[%clk 0:02:23.2]} 19. Kb1 {[%clk
0:01:49]} 19... b6 {[%clk 0:02:15.5]} 20. Rd1 {[%clk 0:01:43.7]} 20... Be6
{[%clk 0:02:06.6]} 21. Be4 {[%clk 0:01:41.8]} 21... Kf7 {[%clk 0:02:02.8]} 22.
Rd3 {[%clk 0:01:39.3]} 22... Be7 {[%clk 0:01:59]} 23. Bc6 {[%clk 0:01:36.6]}
23... f5 {[%clk 0:01:58.9]} 24. a4 {[%clk 0:01:32.8]} 24... f4 {[%clk 0:01:58]}
25. Bf2 {[%clk 0:01:30.5]} 25... Bf5 {[%clk 0:01:53.9]} 26. Rd5 {[%clk
0:01:30.1]} 26... Kf6 {[%clk 0:01:42.3]} 27. a5 {[%clk 0:01:17.4]} 27... bxa5
{[%clk 0:01:43.2]} 28. Bxa7 {[%clk 0:01:15.8]} 28... Be4 {[%clk 0:01:38.1]} 29.
Kb2 {[%clk 0:00:36.4]} 29... Bxd5 {[%clk 0:01:29.7]} 30. Bxd5 {[%clk 0:00:37.3]}
30... Kf5 {[%clk 0:01:25.9]} 31. c4 {[%clk 0:00:37.8]} 31... Bb4 {[%clk
0:01:15.6]} 32. c5 {[%clk 0:00:37]} 32... Rd8 {[%clk 0:01:12.1]} 33. c6 {[%clk
0:00:29.2]} 33... Bd6 {[%clk 0:01:09.2]} 34. b6 {[%clk 0:00:26.8]} 34... e4
{[%clk 0:01:05.6]} 35. c7 {[%clk 0:00:26.5]} 35... Be5+ {[%clk 0:01:03.3]} 36.
Kb3 {[%clk 0:00:25.3]} 36... Rc8 {[%clk 0:00:59.6]} 37. Bb8 {[%clk 0:00:23.5]}
37... Rxb8 {[%clk 0:00:55.1]} 38. cxb8=Q {[%clk 0:00:19.5]} 38... Bxb8 {[%clk
0:00:56]} 39. Kc4 {[%clk 0:00:19.9]} 39... g5 {[%clk 0:00:51.6]} 40. b7 {[%clk
0:00:15.9]} 40... g4 {[%clk 0:00:46.8]} 41. Kd4 {[%clk 0:00:14.4]} 41... Be5+
{[%clk 0:00:43.4]} 42. Kc4 {[%clk 0:00:14.9]} 42... f3 {[%clk 0:00:40.4]} 43.
gxf3 {[%clk 0:00:10.9]} 43... gxf3 {[%clk 0:00:38.7]} 44. Kb5 {[%clk 0:00:07.4]}
44... Kf4 {[%clk 0:00:34]} 45. Kc6 {[%clk 0:00:06.7]} 45... e3 {[%clk
0:00:29.5]} 0-1